bitfinex/quotes_ETHUSD_20250217
["timestamp","ask_amount","ask_price","bid_price","bid_amount"]
[1739814120978,3.6458,2742.9,2742.5,0.7838]
[1739814121701,3.64591,2742.8,2742.5,0.7838]
[1739814121979,3.64596,2742.8,2742.5,0.7838]
[1739814122183,3.64578,2742.9,2742.5,4.43008]
[1739814122394,3.64578,2742.9,2742.5,0.7838]
[1739814122908,3.64591,2742.8,2742.5,0.7838]
[1739814123044,3.64578,2742.9,2742.5,4.43007]
[1739814123249,7.29167,2742.9,2742.5,0.7838]
[1739814123581,7.29166,2742.9,2742.5,0.7838]
[1739814123934,3.64599,2742.8,2742.5,0.7838]
[1739814124649,5.27,2743.2,2742.6,3.6461]
[1739814124852,5.27,2743.2,2742.5,0.7838]
[1739814124853,3.64578,2742.9,2742.5,0.7838]
[1739814125258,3.64563,2743.1,2742.5,0.7838]
[1739814125472,3.64578,2742.9,2742.5,4.43004]
[1739814125859,3.64578,2742.9,2742.5,0.7838]
[1739814126274,3.64591,2742.8,2742.5,0.7838]
[1739814126483,3.64576,2743.0,2742.5,0.7838]
[1739814126790,3.64581,2742.9,2742.5,0.7838]
[1739814127091,6.25060451,2743.2,2742.5,4.42997]
[1739814127235,3.64551,2743.1,2742.6,3.64617]
[1739814127437,3.64551,2743.1,2742.5,0.7838]
[1739814127681,3.64584,2742.9,2742.5,0.7838]
[1739814127906,3.64584,2742.9,2742.5,1.591465]
[1739814128262,3.64584,2742.9,2742.5,5.237755]
[1739814128759,3.64593,2742.8,2742.5,1.591465]
[1739814129097,3.64593,2742.8,2742.5,0.7838]
[1739814129238,3.64584,2742.9,2742.5,0.7838]
[1739814131597,7.29173,2742.9,2742.5,0.7838]
[1739814131813,3.64584,2742.9,2742.5,0.7838]
[1739814132379,7.29173,2742.9,2742.5,0.7838]
[1739814132578,3.64584,2742.9,2742.5,0.7838]
[1739814133002,3.64584,2742.9,2742.6,0.09447441]
[1739814134472,3.64572,2743.0,2742.6,0.09447441]
[1739814134859,5.27,2743.2,2742.6,0.09447441]
[1739814135067,3.64582,2742.9,2742.6,0.09447441]
[1739814135599,5.27,2743.2,2742.6,0.54693085]
[1739814135912,3.64564,2743.0,2742.6,3.74064441]
[1739814136201,3.64564,2743.0,2742.6,0.09447441]
[1739814136604,3.64571,2743.0,2742.6,0.09447441]
[1739814136825,8.9155,2743.2,2742.7,3.64596]
[1739814137174,8.9155,2743.2,2742.8,0.09425616]
[1739814137405,3.6455,2743.2,2742.7,7.29198]
[1739814137618,3.6455,2743.2,2742.9,0.09414704]
[1739814137791,3.6455,2743.2,2742.8,3.74013616]
[1739814137991,3.6455,2743.2,2743.0,0.09403794]
[1739814138333,3.64549,2743.2,2743.1,0.09392884]
[1739814138534,3.64549,2743.2,2742.7,3.64598]
[1739814138828,3.64549,2743.2,2743.1,0.09392884]
[1739814139023,3.64549,2743.2,2742.7,4.088958]
[1739814139172,3.64549,2743.2,2743.1,0.09392884]
[1739814139376,3.64549,2743.2,2742.7,4.088958]
[1739814139591,7.41503515,2743.2,2743.1,0.09392884]
[1739814139819,0.00527116,2742.8,2742.5,4.43009]
[1739814140124,0.00527116,2742.8,2742.6,0.09111981]
[1739814141323,3.64604,2742.7,2742.6,0.09111981]
[1739814141510,4.8357041,2742.7,2742.6,0.09111981]
[1739814141678,3.64626,2742.6,2742.2,0.8245]
[1739814141880,3.64626,2742.6,2742.2,4.47119]
[1739814142192,3.65121116,2742.8,2742.2,4.47119]
[1739814142520,3.64607,2742.7,2742.2,4.47119]
[1739814142678,3.65121116,2742.8,2742.2,4.47119]
[1739814142878,3.65118116,2742.8,2742.3,3.64657]
[1739814143227,0.00527116,2742.8,2742.5,3.64621]
[1739814143584,0.00527116,2742.8,2742.4,3.64643]
[1739814143798,0.00527116,2742.8,2742.3,4.093587]
[1739814144012,0.00527116,2742.8,2742.4,3.64633]
[1739814145092,3.65122116,2742.8,2742.3,4.093587]
[1739814145294,3.65122116,2742.8,2742.3,7.740087]
[1739814145897,3.65122116,2742.8,2742.3,4.093587]
[1739814146081,3.65122116,2742.8,2742.3,3.64648]
[1739814146281,3.64606,2742.7,2742.3,3.64648]
[1739814146521,3.65118116,2742.8,2742.3,7.29295]
[1739814146836,3.65118116,2742.8,2742.3,3.64647]
[1739814147326,3.65118116,2742.8,2742.3,3.64657]
[1739814147525,3.65118116,2742.8,2742.4,0.0914622]
[1739814148629,3.64607,2742.7,2742.4,0.0914622]
[1739814150726,3.65120116,2742.8,2742.4,0.0914622]
[1739814150934,0.00527116,2742.8,2742.4,3.64643]
[1739814151126,0.00527116,2742.8,2742.5,0.09133099]
[1739814151328,0.00527116,2742.8,2742.5,3.73757099]
[1739814151658,0.00527116,2742.8,2742.5,0.09133099]
[1739814152023,0.00527116,2742.8,2742.5,3.73757099]
[1739814152518,3.65117116,2742.8,2742.5,0.09133099]
[1739814153617,3.65117116,2742.8,2742.4,3.64635]
[1739814153924,3.65117116,2742.8,2742.5,0.09133099]
[1739814154636,0.00527116,2742.8,2742.5,0.09133099]
[1739814154946,0.00527116,2742.8,2742.4,3.64637]
[1739814155160,0.00527116,2742.8,2742.6,0.09122185]
[1739814155371,0.00527116,2742.8,2742.5,3.64624]
[1739814155671,0.00527116,2742.8,2742.7,0.09107411]
[1739814155817,0.00527116,2742.8,2742.6,3.73729324]
[1739814156017,0.00527116,2742.8,2742.7,0.09107411]
[1739814156265,0.00527116,2742.8,2742.7,3.73711411]
[1739814156559,0.00527116,2742.8,2742.7,0.09107411]
[1739814157321,0.00527116,2742.8,2742.7,3.73711411]
[1739814157660,0.00527116,2742.8,2742.7,0.09107411]
[1739814158661,0.00527116,2742.8,2742.7,3.73711411]
[1739814158823,0.00527116,2742.8,2742.7,0.09107411]
[1739814159525,0.00527116,2742.8,2742.7,3.73711411]
[1739814159755,0.00527116,2742.8,2742.7,4.55375052]
[1739814160529,0.00527116,2742.8,2742.7,0.90771052]
[1739814160734,0.00527116,2742.8,2742.7,3.73711411]
[1739814161124,0.00527116,2742.8,2742.7,0.09107411]
[1739814161319,0.00527116,2742.8,2742.7,3.73711411]
[1739814165995,0.00527116,2742.8,2742.7,4.49281411]
[1739814167393,0.00527116,2742.8,2742.7,7.49281411]
[1739814167594,0.00527116,2742.8,2742.7,8.63601252]
[1739814168190,0.00527116,2742.8,2742.7,12.40555767]
[1739814168793,1.16e-06,2742.8,2742.7,12.95555767]
[1739814168993,3.64406,2744.2,2743.8,0.7682]
[1739814169289,3.64413,2744.2,2743.8,0.7682]
[1739814169591,3.64404,2744.2,2743.9,0.0894757]
[1739814169746,3.64421,2744.1,2743.6,4.41298]
[1739814169946,3.64421,2744.1,2744.0,0.08936667]
[1739814170142,3.644,2744.3,2743.7,3.6446]
[1739814170347,3.644,2744.3,2744.0,0.08936667]
[1739814170592,3.64419,2744.1,2743.6,5.218781]
[1739814170799,3.644,2744.3,2744.1,0.08925766]
[1739814170952,3.64418,2744.1,2743.6,5.218781]
[1739814171151,3.64418,2744.1,2743.7,0.5218781]
[1739814171700,3.644,2744.3,2743.7,0.5218781]
[1739814171855,3.64405,2744.2,2743.7,4.1664981]
[1739814172563,3.64379,2744.4,2743.8,0.22104607]
[1739814172784,4.43327,2744.5,2744.0,3.64423]
[1739814172953,0.7896,2744.5,2744.0,1.52156061]
[1739814173295,0.7662,2744.7,2744.0,1.52156061]
[1739814173501,11.91334,2744.8,2744.3,3.64381]
[1739814173666,0.7662,2744.9,2744.0,1.52156061]
[1739814173868,0.7662,2744.9,2744.5,3.64357]
[1739814174079,0.7662,2744.9,2744.6,3.64342]
[1739814174286,3.64286,2745.1,2744.6,3.64342]
[1739814174595,5.27,2745.4,2744.9,3.64303]
[1739814174778,3.64257,2745.4,2744.8,3.64323]
[1739814175095,3.64261,2745.3,2744.8,3.64323]
[1739814175262,0.7662,2745.4,2744.9,3.64308]
[1739814175857,3.64261,2745.3,2744.7,4.39145517]
[1739814176052,3.64261,2745.3,2744.8,3.64322]
[1739814176380,3.64279,2745.2,2744.7,4.39145517]
[1739814177070,3.64286,2745.1,2744.5,4.41412]
[1739814177393,3.64261,2745.3,2744.5,4.41412]
[1739814177567,4.083491,2745.3,2744.6,3.64343]
[1739814177766,3.64305,2745.0,2744.5,0.7706]
[1739814177985,0.7662,2744.9,2744.6,0.08778701]
[1739814178210,0.81173923,2744.9,2744.1,4.4147]
[1739814178499,3.64353,2744.6,2744.2,0.08823123]
[1739814179300,3.64408,2744.2,2743.8,0.22104607]
[1739814179651,3.64416,2744.2,2743.8,0.22104607]
[1739814179849,3.64426,2744.1,2743.8,0.22104607]
[1739814180067,3.64432,2744.0,2743.8,0.22104607]
[1739814180277,0.83,2744.1,2743.8,0.22104607]
[1739814180492,4.47386,2744.4,2743.8,0.22104607]
[1739814180783,3.64412,2744.2,2743.8,0.22104607]
[1739814181403,4.47383,2744.4,2743.8,0.22104607]
[1739814181613,3.64413,2744.2,2743.8,0.22104607]
[1739814181895,10.2872,2744.6,2743.8,4.25210768]
[1739814182199,7.28777,2744.4,2743.8,4.25206768]
[1739814182405,3.64388,2744.4,2743.8,7.89656768]
[1739814182894,3.64366,2744.5,2743.8,4.25206768]
[1739814183099,0.7516,2744.7,2744.2,0.7906]
[1739814183398,4.39501,2744.7,2744.2,0.7906]
[1739814183581,1.53689784,2744.7,2743.9,4.43497]
[1739814183897,3.64373,2744.5,2743.9,4.43497]
[1739814184396,3.64351,2744.6,2744.1,3.64418]
[1739814184791,3.64366,2744.5,2744.0,3.64424]
[1739814185299,3.64366,2744.5,2744.0,3.64423]
[1739814185658,7.2874,2744.5,2744.0,3.64423]
[1739814185871,4.44756,2744.5,2743.9,0.7906]
[1739814186170,3.64389,2744.4,2743.9,4.43501]
[1739814186483,4.44756,2744.5,2744.0,3.64421]
[1739814186670,3.64366,2744.5,2743.9,0.7906]
[1739814186883,3.64418,2744.1,2743.8,0.22104607]
[1739814187098,3.64444,2743.9,2743.8,0.22104607]
[1739814189377,7.43604,2743.9,2743.8,0.22104607]
[1739814189576,11.75558515,2743.9,2743.8,0.22104607]
[1739814189884,13.29558567,2743.9,2743.8,0.22104607]
[1739814190394,13.29558567,2743.9,2743.8,6.07e-06]
[1739814193878,5.97604052,2743.9,2743.8,6.07e-06]
[1739814194085,3.64444,2743.9,2743.8,6.07e-06]
[1739814194312,7.41398515,2743.9,2743.8,0.08689096]
[1739814194523,7.41398515,2743.9,2743.8,6.07e-06]
[1739814194824,10.96398515,2743.9,2743.8,6.07e-06]
[1739814195030,11.77588515,2743.9,2743.8,6.07e-06]
[1739814195228,13.31791567,2743.9,2743.8,6.07e-06]
[1739814199837,13.499194,2743.9,2743.8,6.07e-06]
[1739814200045,3.64587,2742.9,2742.4,0.8151]
[1739814200425,3.64587,2742.9,2742.4,4.46152]
[1739814200624,3.64559,2743.1,2742.4,4.46152]
[1739814200827,3.64568,2743.0,2742.5,4.092382]
[1739814201148,3.64586,2742.9,2742.5,0.446152]
[1739814201444,3.64586,2742.9,2742.5,4.092452]
[1739814201600,3.64586,2742.9,2742.5,0.446152]
[1739814201798,3.64586,2742.9,2742.4,4.46144]
[1739814202202,3.64586,2742.9,2742.5,3.6463]
[1739814202433,3.64554,2743.1,2742.4,4.46153]
[1739814202631,3.64584,2742.9,2742.4,4.46153]
[1739814202814,3.64584,2742.9,2742.4,0.8151]
[1739814202815,3.64597,2742.8,2742.4,0.8151]
[1739814203015,3.64607,2742.7,2742.4,0.8151]
[1739814203549,7.29174,2742.9,2742.4,0.8151]
[1739814203850,7.29173,2742.9,2742.4,0.8151]
[1739814203998,3.64592,2742.8,2742.4,0.8151]
[1739814204399,3.64611,2742.7,2742.4,0.8151]
[1739814205116,7.29223,2742.7,2742.4,0.8151]
[1739814205314,3.64624,2742.6,2742.4,0.8151]
[1739814205514,3.6464,2742.5,2742.2,0.7734]
[1739814205714,3.64652,2742.4,2742.2,0.7734]
[1739814206313,3.64657,2742.3,2742.2,0.7734]
[1739814206515,3.64678,2742.2,2742.0,0.15162597]
[1739814206714,0.36464,2742.5,2742.0,0.15162597]
[1739814206948,6.058,2743.0,2742.1,0.7734]
[1739814207250,3.64577,2742.9,2742.1,0.7734]
[1739814207569,3.64577,2742.9,2742.0,0.15162597]
[1739814207570,3.6467,2742.2,2742.0,0.15162597]
[1739814207852,3.64684,2742.1,2742.0,0.15162597]
[1739814208199,3.64657,2742.3,2742.0,0.15162597]
[1739814208404,3.64672,2742.2,2742.0,0.15162597]
[1739814208648,3.64644,2742.4,2742.0,0.15162597]
[1739814209017,3.64671,2742.2,2742.0,0.15162597]
[1739814209215,3.64684,2742.1,2742.0,0.15162597]
[1739814209435,3.6467,2742.2,2742.0,0.15162597]
[1739814209675,7.29349,2742.2,2742.0,0.15162597]
[1739814209882,3.64684,2742.1,2742.0,0.15162597]
[1739814210931,4.376195,2742.1,2742.0,0.15162597]
[1739814211229,3.64684,2742.1,2742.0,0.15162597]
[1739814212531,8.91634,2742.5,2742.0,4.58801597]
[1739814212850,3.64646,2742.4,2742.0,0.94112597]
[1739814213663,3.64663,2742.3,2742.0,0.94112597]
[1739814214738,3.64684,2742.1,2742.0,0.15162597]
[1739814215161,7.29353,2742.2,2742.0,0.15162597]
[1739814215662,7.29353,2742.2,2742.1,0.08939641]
[1739814215851,3.64684,2742.1,2742.0,0.15162597]
[1739814218493,3.64675,2742.2,2742.0,0.15162597]
[1739814218944,4.902909,2742.3,2742.0,0.15162597]
[1739814219130,4.2138609,2742.2,2742.0,0.15162597]
[1739814219991,0.5671609,2742.2,2742.0,0.15162597]
[1739814220154,4.2138709,2742.2,2742.0,0.15162597]
[1739814220356,8.91639,2742.5,2742.0,3.79852597]
[1739814220553,3.64652,2742.4,2742.0,0.15162597]
[1739814220955,3.64661,2742.3,2742.0,0.15162597]
[1739814221177,5.27,2742.5,2742.0,0.15162597]
[1739814221339,3.64676,2742.2,2742.0,0.15162597]
[1739814221544,0.60794,2742.4,2742.0,0.15162597]
[1739814221545,3.64663,2742.3,2742.0,0.15162597]
[1739814221974,3.6468,2742.2,2742.0,0.15162597]
[1739814222854,4.25438,2742.4,2742.0,0.15162597]
[1739814223070,8.91639,2742.5,2742.1,0.08942939]
[1739814223256,5.27,2742.5,2742.2,4.45384]
[1739814223556,5.27,2742.5,2742.2,4.54322022]
[1739814224080,5.27,2742.5,2742.2,4.4539]
[1739814224472,5.27,2742.5,2742.3,0.08916982]
[1739814224683,5.27,2742.5,2742.2,0.8072]
[1739814224882,8.91636,2742.5,2742.4,0.08906066]
[1739814225073,8.91636,2742.5,2742.3,0.08913683]
[1739814225255,8.91636,2742.5,2742.2,0.8072]
[1739814225453,8.91636,2742.5,2742.4,0.08902768]
[1739814225668,8.91636,2742.5,2742.2,0.8072]
[1739814225869,8.91636,2742.5,2742.4,0.08902768]
[1739814226377,5.27,2742.5,2742.2,0.8072]
[1739814226553,5.27,2742.5,2742.4,0.08902768]
[1739814226753,8.91584,2742.9,2742.4,3.64637]
[1739814227059,8.91584,2742.9,2742.5,0.08891578]
[1739814227273,3.64593,2742.8,2742.5,0.08891578]
[1739814227457,3.64593,2742.8,2742.3,3.64649]
[1739814227657,3.64593,2742.8,2742.6,0.08880664]
[1739814227891,3.64593,2742.8,2742.3,3.64649]
[1739814228387,3.64609,2742.7,2742.4,0.08902493]
[1739814228572,3.64609,2742.7,2742.2,4.45388]
[1739814228899,3.64609,2742.7,2742.3,0.08913408]
[1739814229193,3.64609,2742.7,2742.3,3.64655]
[1739814229353,3.64609,2742.7,2742.4,0.08902493]
[1739814229556,4.42724,2743.3,2742.6,4.41998]
[1739814229756,0.782,2743.3,2742.6,0.7739]
[1739814230001,3.64574,2743.0,2742.7,0.08867278]
[1739814230223,3.6459,2742.8,2742.7,0.08867278]
[1739814230505,3.6459,2742.8,2742.3,3.64648]
[1739814230506,3.6459,2742.8,2742.3,8.06689]
[1739814230700,3.6459,2742.8,2742.7,0.08867278]
[1739814231001,3.64592,2742.8,2742.7,0.08867278]
[1739814231155,3.64592,2742.8,2742.3,4.42039]
[1739814231356,3.64606,2742.7,2742.4,0.08900019]
[1739814231598,3.64619,2742.6,2742.4,0.08900019]
[1739814231788,3.6463,2742.5,2742.4,0.08900019]
[1739814232300,4.0471134,2742.7,2742.4,0.08900019]
[1739814232469,3.64624,2742.6,2742.4,0.08900019]
[1739814233862,3.64604,2742.7,2742.4,0.08900019]
[1739814235105,3.8256,2743.2,2742.4,0.08900019]
[1739814235303,3.64598,2742.8,2742.4,0.08900019]
[1739814235466,0.55,2743.1,2742.4,0.08900019]
[1739814235662,3.64612,2742.7,2742.4,0.08900019]
[1739814236003,7.29176,2742.9,2742.4,0.08900019]
[1739814236209,3.64586,2742.9,2742.4,3.73543019]
[1739814236409,3.64586,2742.9,2742.4,0.08900019]
[1739814236410,3.64591,2742.8,2742.4,0.08900019]
[1739814237100,3.6459,2742.8,2742.4,0.08900019]
[1739814237295,3.64606,2742.7,2742.4,0.08900019]
[1739814237497,3.64612,2742.7,2742.4,0.08900019]
[1739814237700,4.065446,2742.9,2742.4,3.73537019]
[1739814238013,0.419586,2742.9,2742.5,3.64625]
[1739814238364,0.419586,2742.9,2742.5,3.73506683]
[1739814238770,4.065386,2742.9,2742.5,3.73506683]
[1739814239270,4.065386,2742.9,2742.5,0.08881683]
[1739814239475,4.065386,2742.9,2742.4,3.64638]
[1739814239678,5.27,2743.0,2742.7,3.64592]
[1739814239973,5.27,2743.0,2742.8,3.73435944]
[1739814240204,5.27,2743.0,2742.8,0.08848944]
[1739814240383,5.27,2743.0,2742.7,0.7827]
[1739814240787,3.64577,2742.9,2742.8,0.08848944]
[1739814241075,3.64577,2742.9,2742.5,4.4725]
[1739814241300,5.27,2743.0,2742.8,0.08848944]
[1739814241500,5.27,2743.0,2742.5,0.8262]
[1739814241689,5.27,2743.0,2742.8,3.6459]
[1739814241905,5.27,2743.0,2742.9,0.7837]
[1739814242106,5.27,2743.0,2742.9,0.87208033]
[1739814242414,3.64537,2743.2,2742.9,0.87208033]
[1739814242573,3.0,2743.3,2742.9,4.51784033]
[1739814242774,4.43637,2743.6,2743.0,3.64555]
[1739814243025,0.0952,2743.9,2743.1,0.89193572]
[1739814243325,0.0952,2743.9,2743.2,3.64537]
[1739814243502,0.0952,2743.9,2743.2,3.64529]
[1739814243503,3.64472,2743.7,2743.2,3.64529]
[1739814243704,3.64472,2743.7,2743.3,0.08775985]
[1739814243876,3.64466,2743.8,2743.3,0.08775985]
[1739814244079,0.0952,2743.9,2743.4,0.8229]
[1739814244376,3.64463,2743.8,2743.4,0.91055078]
[1739814246727,3.69034909,2743.7,2743.4,0.91055078]
[1739814246877,0.81,2743.6,2743.4,0.08765078]
[1739814247078,4.45491,2743.6,2743.2,0.7715]
[1739814247401,3.64491,2743.6,2743.5,0.08754171]
[1739814247616,3.64491,2743.6,2743.2,0.7715]
[1739814247827,3.64477,2743.7,2743.5,0.08754171]
[1739814248173,0.55,2743.8,2743.3,3.64522]
[1739814248373,4.19466,2743.8,2743.6,0.08720187]
[1739814248577,6.73965,2743.9,2743.4,3.64503]
[1739814248811,3.64465,2743.8,2743.7,0.08709282]
[1739814249013,3.64465,2743.8,2743.2,4.41678]
[1739814249210,3.64465,2743.8,2743.3,4.086898]
[1739814249430,3.64465,2743.8,2743.2,4.41678]
[1739814249614,3.64479,2743.7,2743.2,4.41678]
[1739814249814,3.64465,2743.8,2743.2,4.41678]
[1739814249815,3.64465,2743.8,2743.4,0.08741999]
[1739814250134,3.0952,2743.9,2743.3,3.64519]
[1739814250135,3.0952,2743.9,2743.3,0.08752907]
[1739814250424,4.40762,2743.5,2742.9,4.44165]
[1739814250661,3.64511,2743.4,2743.0,3.64563]
[1739814250831,3.64484,2743.6,2743.1,3.64549]
[1739814251190,4.40741,2743.7,2743.1,3.64549]
[1739814251385,3.64491,2743.6,2743.1,3.64549]
[1739814251790,3.645,2743.5,2743.1,3.64549]
[1739814252030,3.64512,2743.4,2742.9,4.44159]
[1739814252533,4.4074,2743.7,2743.0,3.64564]
[1739814252736,3.64547,2743.2,2742.7,0.819]
[1739814253030,3.6457,2743.0,2742.5,4.46524]
[1739814253332,0.8074,2743.1,2742.8,0.0849919]
[1739814253635,3.64577,2742.9,2742.5,0.819]
[1739814253802,4.45303,2743.1,2742.5,0.819]
[1739814254009,4.45303,2743.1,2742.5,4.46524]
[1739814254010,3.64573,2743.0,2742.5,4.46524]
[1739814254241,3.64573,2743.0,2742.5,0.819]
[1739814254449,3.64577,2742.9,2742.5,0.819]
[1739814254647,3.64604,2742.7,2742.5,0.819]
[1739814254941,7.29166,2742.9,2742.3,4.46545]
[1739814255527,3.64595,2742.8,2742.3,4.46545]
[1739814256241,7.29163,2742.9,2742.4,3.64643]
[1739814256441,3.64577,2742.9,2742.4,3.64643]
[1739814256807,3.64571,2743.0,2742.5,3.64623]
[1739814257148,3.64571,2743.0,2742.4,0.811204]
[1739814257314,3.64584,2742.9,2742.4,4.457604]
[1739814258057,3.64595,2742.8,2742.4,0.811204]
[1739814258345,3.64595,2742.8,2742.3,4.46556]
[1739814258908,3.64595,2742.8,2742.3,8.11206]
[1739814259248,3.64595,2742.8,2742.3,4.4655]
[1739814259823,3.64595,2742.8,2742.4,3.64642]
[1739814260748,3.64595,2742.8,2742.3,0.819]
[1739814260949,3.64605,2742.7,2742.3,0.819]
[1739814261113,3.64644,2742.4,2742.1,0.7991]
[1739814261314,3.64631,2742.5,2742.1,0.7991]
[1739814261834,0.80448067,2742.6,2742.0,0.15162597]
[1739814262048,7.29353,2742.2,2742.0,0.15162597]
[1739814262247,3.64674,2742.2,2742.0,0.15162597]
[1739814262839,3.64684,2742.1,2742.0,0.15162597]
[1739814263567,5.157798,2742.1,2742.0,0.15162597]
[1739814263873,0.7816,2742.1,2742.0,0.15162597]
[1739814264025,4.42844,2742.1,2742.0,0.15162597]
[1739814264225,4.42844,2742.1,2742.0,0.23480835]
[1739814264425,0.7816,2742.1,2742.0,0.23480835]
[1739814265131,4.42844,2742.1,2742.0,0.23480835]
[1739814265567,4.42844,2742.1,2742.0,0.15162597]
[1739814266440,4.42844,2742.1,2742.0,0.2351191]
[1739814267245,4.42818,2742.3,2742.0,0.15162597]
[1739814267553,3.64674,2742.2,2742.1,0.08338395]
[1739814268573,5.30295252,2742.3,2742.1,0.08338395]
[1739814269066,3.6467,2742.2,2742.0,0.15162597]
[1739814269269,3.6467,2742.2,2742.1,0.08338395]
[1739814269669,3.6467,2742.2,2742.0,0.15162597]
[1739814269966,3.6467,2742.2,2742.1,0.08338395]
[1739814271029,5.30295252,2742.3,2741.6,3.64749]
[1739814271528,3.64686,2742.1,2741.7,0.08382071]
[1739814272676,3.64686,2742.1,2741.7,3.73117071]
[1739814272830,3.64697,2742.0,2741.7,0.08382071]
[1739814273030,3.64692,2742.1,2741.7,3.73118071]
[1739814273476,4.65637252,2742.3,2741.7,0.08382071]
[1739814273775,3.64692,2742.1,2741.7,0.08382071]
[1739814274588,4.48929177,2742.2,2741.7,3.73111071]
[1739814274772,3.64692,2742.1,2741.7,0.08382071]
[1739814276086,3.6467,2742.2,2741.7,0.08382071]
[1739814276291,3.6467,2742.2,2741.7,3.73113071]
[1739814276792,3.64692,2742.1,2741.7,3.73113071]
[1739814277180,3.6467,2742.2,2741.7,3.73113071]
[1739814277376,3.64689,2742.1,2741.7,3.73113071]
[1739814277857,3.64693,2742.1,2741.7,3.73117071]
[1739814279193,3.64671,2742.2,2741.8,3.64723]
[1739814279570,3.64671,2742.2,2741.9,0.08360231]
[1739814280297,3.0,2742.4,2742.0,0.813]
[1739814280499,3.6466,2742.3,2742.1,0.08362934]
[1739814280897,3.64666,2742.3,2742.1,0.08362934]
[1739814281101,3.6467,2742.2,2742.1,0.08362934]
[1739814281260,3.6467,2742.2,2741.8,4.46017]
[1739814281671,3.6467,2742.2,2741.9,0.08384771]
[1739814281878,3.64665,2742.3,2741.9,0.08384771]
[1739814282360,3.64674,2742.2,2741.9,0.08384771]
[1739814282804,4.326459,2742.4,2741.9,0.08384771]
[1739814283102,4.1342859,2742.3,2741.9,3.73090771]
[1739814283257,4.1342359,2742.3,2741.9,3.73090771]
[1739814283459,7.7808759,2742.3,2741.9,3.73090771]
[1739814283892,4.1342359,2742.3,2741.9,3.73090771]
[1739814284099,7.7809259,2742.3,2741.9,0.08384771]
[1739814284299,4.1342359,2742.3,2741.9,0.08384771]
[1739814284512,7.7809259,2742.3,2741.9,0.08384771]
[1739814284916,4.1342359,2742.3,2741.9,0.08384771]
[1739814285073,4.326459,2742.4,2741.9,3.73085771]
[1739814285475,3.64659,2742.3,2741.9,3.73085771]
[1739814285675,4.40221,2742.2,2741.9,0.08384771]
[1739814286417,3.64684,2742.1,2741.9,0.08384771]
[1739814286622,3.69255998,2742.0,2741.9,0.08384771]
[1739814286777,3.6475,2741.6,2741.5,0.7759]
[1739814287179,3.64738,2741.7,2741.5,0.86018998]
[1739814287481,3.64738,2741.7,2741.5,0.08428998]
[1739814287707,3.69297601,2741.7,2741.5,0.08428998]
[1739814287914,3.69297601,2741.7,2741.3,0.7669]
[1739814288091,3.69297601,2741.7,2741.3,4.41479]
[1739814288297,3.64738,2741.7,2741.4,0.08439921]
[1739814288901,3.64712,2741.9,2741.4,0.08439921]
[1739814289221,3.64725,2741.8,2741.4,0.08439921]
[1739814289424,3.64725,2741.8,2741.4,3.73212921]
[1739814290201,3.64725,2741.8,2741.4,0.08439921]
[1739814292107,3.64744,2741.7,2741.4,0.08439921]
[1739814292425,3.64755,2741.6,2741.4,0.08439921]
[1739814292725,3.64763,2741.5,2741.4,0.08439921]
[1739814293024,3.64818,2741.1,2740.7,0.7754]
[1739814293927,7.29603,2741.3,2740.7,0.7754]
[1739814294086,0.55,2741.4,2740.7,0.7754]
[1739814294286,3.64826,2741.1,2740.7,0.7754]
[1739814295622,3.64858,2740.8,2740.3,3.64917]
[1739814295796,3.64858,2740.8,2740.4,3.64908]
[1739814296001,3.64858,2740.8,2740.4,4.40818]
[1739814296306,4.44769,2741.0,2740.5,3.64894]
[1739814296493,3.64853,2740.9,2740.4,0.7591]
[1739814296697,3.64853,2740.9,2740.4,4.40813]
[1739814297529,4.44769,2741.0,2740.5,3.64891]
[1739814297702,8.09608,2741.0,2740.5,3.64891]
[1739814297902,8.09608,2741.0,2740.6,0.08554611]
[1739814298098,4.44769,2741.0,2740.6,0.08554611]
[1739814298404,3.76954515,2740.8,2739.6,0.7591]
[1739814298616,3.64939,2740.2,2739.6,4.4092]
[1739814298814,3.64933,2740.3,2739.6,4.4092]
[1739814298815,3.6495,2740.1,2739.6,4.4092]
[1739814299014,3.6495,2740.1,2739.7,0.08352715]
[1739814300420,3.6497,2740.0,2739.7,0.08352715]
[1739814301206,3.6499,2739.8,2739.7,0.08352715]
[1739814301532,3.6499,2739.8,2739.4,0.7728]
[1739814301737,0.72992,2740.0,2739.4,0.7728]
[1739814301941,0.72992,2740.0,2739.3,0.1479924]
[1739814301942,3.65032,2739.5,2739.3,0.1479924]
[1739814302293,3.6499,2739.8,2739.3,0.1479924]
[1739814302493,3.65017,2739.6,2739.3,0.1479924]
[1739814302798,3.65031,2739.5,2739.3,0.1479924]
[1739814303088,4.46917452,2739.7,2739.3,0.1479924]
[1739814303329,0.81905452,2739.7,2739.3,0.1479924]
[1739814303633,4.46916452,2739.7,2739.3,0.1479924]
[1739814303986,3.65018,2739.6,2739.3,0.1479924]
[1739814304238,3.65033,2739.5,2739.3,0.1479924]
[1739814304548,3.65043,2739.4,2739.3,0.1479924]
[1739814304706,4.51826328,2739.4,2739.3,0.1479924]
[1739814305045,5.06826988,2739.4,2739.3,0.1479924]
[1739814305331,5.02263,2739.4,2739.3,0.1479924]
[1739814305747,1.3722,2739.4,2739.3,0.1479924]
[1739814305939,1.63655452,2739.7,2739.3,0.1479924]
[1739814306237,7.41940515,2739.9,2739.3,4.5967224]
[1739814306444,1.54742,2740.0,2739.3,4.5967224]
[1739814306623,3.0,2740.1,2739.3,0.9461924]
[1739814306796,0.8175,2740.3,2739.8,3.64988]
[1739814307007,0.8175,2740.3,2739.4,0.7982]
[1739814307207,0.55510648,2741.0,2740.2,3.64931]
[1739814307208,0.8175,2740.6,2740.2,3.64931]
[1739814307412,3.64883,2740.6,2740.1,3.6495]
[1739814307645,3.64892,2740.6,2740.0,4.44779]
[1739814308263,3.64883,2740.6,2740.0,4.44775]
[1739814308651,3.6491,2740.4,2740.0,0.7982]
[1739814308957,3.6491,2740.4,2739.7,4.47881]